bitfinex/quotes_SOLUSD_20260109
["timestamp","ask_amount","ask_price","bid_price","bid_amount"]
[1767939441540,10.03320255,139.9,139.87,0.65981374]
[1767939443445,7.83413553,139.9,139.87,0.65981374]
[1767939443735,6.29956055,139.94,139.9,0.65981374]
[1767939443736,7.14591967,139.94,139.9,0.65981374]
[1767939443945,4.80720887,139.93,139.9,2.85888076]
[1767939444119,4.80720887,139.93,139.9,0.65981374]
[1767939444320,0.68219124,139.92,139.89,2.19906702]
[1767939444940,5.48940011,139.92,139.89,2.19906702]
[1767939445652,5.48940011,139.92,139.88,10.00766884]
[1767939447854,0.32900432,139.91,139.88,0.65981374]
[1767939448158,0.67865937,139.9,139.87,10.00817975]
[1767939448358,0.67865937,139.9,139.88,0.7]
[1767939448556,10.0319883,139.92,139.88,1.35981374]
[1767939449059,4.81145479,139.91,139.88,1.35981374]
[1767939450255,10.0319883,139.92,139.88,1.35981374]
[1767939450455,4.81131618,139.91,139.88,1.35981374]
[1767939452857,14.15804093,139.91,139.88,1.35981374]
[1767939453050,14.81820065,139.9,139.88,0.7]
[1767939453363,10.00688447,139.9,139.88,0.7]
[1767939454771,7.80781745,139.9,139.88,0.7]
[1767939455066,10.00612878,139.91,139.88,1.41445972]
[1767939455253,4.81077288,139.9,139.88,1.41445972]
[1767939456475,4.78077289,139.9,139.88,1.41445972]
[1767939458279,10.00612878,139.91,139.88,1.41445972]
[1767939459578,15.91864648,139.92,139.89,0.71445972]
[1767939459764,13.06,139.92,139.89,0.71445972]
[1767939460156,0.35138998,139.91,139.88,10.04803363]
[1767939460354,6.11523741,139.95,139.9,0.71445972]
[1767939460559,0.1,139.97,139.95,0.71445972]
[1767939460756,0.1,139.99,139.97,0.71445972]
[1767939460972,0.1,139.99,139.97,2.19906702]
[1767939461177,0.07,139.99,139.97,2.19906702]
[1767939461370,0.07,139.99,139.96,2.19906702]
[1767939462269,0.07,139.99,139.96,9.34394809]
[1767939462575,0.07,139.99,139.97,2.19906702]
[1767939462982,0.07,139.99,139.97,2.91352674]
[1767939463688,0.07,139.99,139.97,0.71445972]
[1767939463863,0.07,139.99,139.97,2.91352674]
[1767939465087,0.07,139.99,139.97,0.71445972]
[1767939465670,0.07,139.99,139.92,6.96443384]
[1767939465671,2.92864648,139.99,139.95,0.71445972]
[1767939466367,0.72957946,139.99,139.95,2.91352674]
[1767939469279,0.72957946,139.99,139.95,0.71445972]
[1767939469465,0.72957946,139.99,139.95,2.91352674]
[1767939470990,0.07,139.99,139.97,0.71445972]
[1767939471189,0.07,139.99,139.97,0.65445972]
[1767939472794,0.07,139.99,139.97,0.59445972]
[1767939474093,0.07,139.99,139.96,2.19906702]
[1767939474985,0.07,139.99,139.96,2.91352674]
[1767939476415,0.72957946,139.99,139.96,2.91352674]
[1767939476697,0.72957946,139.99,139.94,2.91352674]
[1767939476698,0.65957946,139.98,139.94,2.91352674]
[1767939477038,0.65957946,139.98,139.94,0.71445972]
[1767939477181,0.65957946,139.98,139.94,2.91352674]
[1767939477396,0.65957946,139.97,139.94,0.71445972]
[1767939478287,0.65957946,139.97,139.94,2.91352674]
[1767939478697,0.65957946,139.97,139.94,0.71445972]
[1767939479109,0.65957946,139.97,139.94,2.91352674]
[1767939479905,7.80413558,139.97,139.93,2.91352674]
[1767939481611,0.07,139.99,139.93,0.71445972]
[1767939481612,7.80449858,139.96,139.93,0.71445972]
[1767939481817,0.65957946,139.95,139.92,2.19906702]
[1767939481985,0.65957946,139.94,139.88,0.71445972]
[1767939482306,0.65957946,139.93,139.89,9.34738627]
[1767939483098,0.65957946,139.93,139.89,7.14831925]
[1767939483312,0.65957946,139.93,139.89,2.19906702]
[1767939483607,0.65957946,139.93,139.89,9.34744461]
[1767939484401,0.65957946,139.93,139.9,2.19906702]
[1767939485916,0.65957946,139.93,139.9,9.34695034]
[1767939486417,0.65957946,139.93,139.9,10.00795544]
[1767939488226,0.70951303,139.94,139.9,10.00795544]
[1767939488529,0.70951303,139.94,139.9,11.2444379]
[1767939490215,0.70951303,139.94,139.91,4.09175157]
[1767939490612,7.85494806,139.95,139.91,4.09175157]
[1767939491195,4.14506251,139.92,139.88,0.65620209]
[1767939491499,25.00895771,139.95,139.86,7.80612794]
[1767939491500,0.70951303,139.9,139.86,7.80612794]
[1767939491809,4.14506251,139.9,139.86,0.65620209]
[1767939492011,4.14506251,139.89,139.85,0.65620209]
[1767939492201,0.70951303,139.88,139.84,0.65620209]
[1767939493811,0.70951303,139.86,139.82,40.46251449]
[1767939494135,0.70951303,139.86,139.82,37.02696501]
[1767939495716,0.70951303,139.85,139.82,36.37076292]
[1767939495919,0.67951304,139.85,139.82,36.37076292]
[1767939496330,3.43554948,139.86,139.82,37.02696501]
[1767939497907,0.70951303,139.86,139.82,37.02696501]
[1767939498107,4.14506251,139.86,139.82,37.02696501]
[1767939499628,11.29517862,139.86,139.82,37.02696501]
[1767939499823,0.70951303,139.84,139.82,36.37076292]
[1767939500127,0.70951303,139.84,139.8,0.2]
[1767939500128,3.43554948,139.84,139.8,0.2]
[1767939500526,3.40554949,139.84,139.8,0.2]
[1767939501026,16.49554948,139.85,139.8,0.85620209]
[1767939501515,23.64655107,139.85,139.8,0.85620209]
[1767939501916,0.70951303,139.84,139.8,0.85620209]
[1767939502116,0.70951303,139.83,139.8,0.85620209]
[1767939502718,0.70951303,139.82,139.8,0.2]
[1767939503326,0.70951303,139.82,139.78,0.65620209]
[1767939503327,4.14506251,139.81,139.77,0.65620209]
[1767939503636,11.29776301,139.81,139.77,0.65620209]
[1767939503932,0.70951303,139.8,139.77,0.65620209]
[1767939504830,0.70951303,139.79,139.76,0.2]
[1767939505018,0.70951303,139.78,139.76,0.2]
[1767939505220,0.67951304,139.78,139.76,0.2]
[1767939506231,4.11506252,139.78,139.76,0.2]
[1767939506436,0.67951304,139.78,139.76,0.2]
[1767939506935,10.58999739,139.78,139.76,0.2]
[1767939507133,3.43554948,139.77,139.74,0.2]
[1767939507517,3.43554948,139.76,139.74,0.2]
[1767939507835,3.43554948,139.75,139.72,0.2]
[1767939508213,3.43554948,139.76,139.72,0.2]
[1767939509038,0.70951303,139.75,139.72,0.2]
[1767939509819,7.86516232,139.75,139.72,0.2]
[1767939510218,0.70951303,139.75,139.72,0.2]
[1767939510630,0.70951303,139.74,139.72,0.2]
[1767939510835,4.14506251,139.74,139.72,0.2]
[1767939511342,7.86566947,139.74,139.72,0.2]
[1767939511834,0.70951303,139.72,139.69,0.65620209]
[1767939512054,0.67951304,139.72,139.69,0.65620209]
[1767939512711,7.15615644,139.74,139.69,4.09175157]
[1767939512712,10.59170592,139.74,139.69,4.09175157]
[1767939514050,0.65677551,139.73,139.69,4.09175157]
[1767939514248,0.62677552,139.73,139.69,4.09175157]
[1767939515347,7.15615644,139.74,139.7,4.12809165]
[1767939516127,7.81293195,139.74,139.7,4.12809165]
[1767939516959,0.65677551,139.74,139.7,4.12809165]
[1767939517347,7.8129786,139.74,139.7,4.12809165]
[1767939517541,11.24852808,139.74,139.7,0.69254217]
[1767939520247,0.65677551,139.74,139.71,0.69254217]
[1767939524150,0.65677551,139.74,139.7,10.59361093]
[1767939524151,0.65677551,139.72,139.69,3.43554948]
[1767939524447,0.65677551,139.72,139.68,11.38355882]
[1767939524657,0.65677551,139.72,139.69,0.69254217]
[1767939525446,11.24905552,139.73,139.69,0.69254217]
[1767939525830,4.09232499,139.73,139.69,0.69254217]
[1767939526146,7.81146719,139.77,139.73,0.69254217]
[1767939526325,7.81146719,139.77,139.73,4.12809165]
[1767939527651,7.81146719,139.77,139.74,0.69254217]
[1767939527954,16.49554948,139.78,139.75,0.69254217]
[1767939527955,20.21429297,139.78,139.75,0.69254217]
[1767939528345,20.87106848,139.78,139.75,0.69254217]
[1767939529455,13.06,139.78,139.75,0.69254217]
[1767939529628,13.06,139.78,139.75,4.12809165]
[1767939529949,13.06,139.78,139.76,0.69254217]
[1767939530534,7.80974604,139.81,139.78,0.69254217]
[1767939530851,0.65677551,139.81,139.78,0.69254217]
[1767939531539,0.65677551,139.81,139.77,4.12809165]
[1767939533447,0.65677551,139.81,139.77,0.69254217]
[1767939533650,0.65677551,139.8,139.76,4.12809165]
[1767939534441,0.65677551,139.79,139.75,4.62809165]
[1767939536835,0.65677551,139.79,139.75,1.19254217]
[1767939537039,0.65677551,139.79,139.75,4.62809165]
[1767939537040,0.65677551,139.78,139.75,4.62809165]
[1767939537950,0.65677551,139.78,139.76,3.43554948]
[1767939540359,7.15360717,139.79,139.77,3.43554948]
[1767939540360,0.65677551,139.79,139.77,3.43554948]
[1767939540736,7.15320896,139.8,139.77,3.43554948]
[1767939540942,7.80943675,139.81,139.78,0.69254217]
[1767939541436,0.65677551,139.79,139.75,1.19254217]
[1767939541639,7.15409929,139.78,139.75,4.62809165]
[1767939542838,7.15409929,139.78,139.75,1.19254217]
[1767939544261,0.68541961,139.81,139.78,0.6966147]
[1767939544461,13.06,139.82,139.79,0.6966147]
[1767939544653,20.21209894,139.82,139.79,0.6966147]
[1767939549578,20.88882235,139.82,139.79,0.6966147]
[1767939556174,7.82882235,139.82,139.79,0.6966147]
[1767939556771,0.67672341,139.82,139.79,0.6966147]
[1767939556975,0.68386306,139.85,139.81,0.71619852]
[1767939557283,7.83438149,139.85,139.82,2.20275176]
[1767939557454,7.83438149,139.85,139.81,2.20275176]
[1767939557655,0.68386306,139.84,139.81,2.20275176]
[1767939558157,0.68386306,139.84,139.81,2.70275176]
[1767939560992,0.68386306,139.83,139.81,0.5]
[1767939561157,0.68386306,139.83,139.79,10.07236554]
[1767939561860,0.68386306,139.83,139.8,2.20275176]
[1767939562475,7.15103163,139.84,139.81,0.71619852]
[1767939562785,9.59644778,139.84,139.81,0.71619852]
[1767939569880,7.39369602,139.84,139.81,0.71619852]
[1767939571874,0.67945107,139.83,139.79,2.91895028]
[1767939572365,0.67945107,139.83,139.8,0.71619852]
[1767939574381,7.15205263,139.82,139.8,0.71619852]
[1767939574595,7.15205263,139.82,139.76,13.83502393]
[1767939574596,0.25131321,139.8,139.76,0.70138497]
[1767939574765,0.67088874,139.79,139.76,0.70138497]
[1767939575662,0.67088874,139.79,139.76,2.90413673]
[1767939575864,0.71992374,139.8,139.77,0.70138497]
[1767939576065,9.56232201,139.81,139.77,0.70138497]
[1767939577586,13.06,139.82,139.78,0.70138497]
[1767939577768,13.06,139.82,139.8,0.70138497]
[1767939578160,13.06,139.82,139.81,0.70138497]
[1767939578580,7.87105794,139.84,139.81,0.70138497]
[1767939579767,10.0738097,139.84,139.81,0.70138497]
[1767939580573,10.0738097,139.84,139.81,0.64138497]
[1767939587486,10.0738097,139.84,139.81,0.58138497]
[1767939589307,5.14396561,139.83,139.79,2.20275176]
[1767939589513,4.81820129,139.83,139.79,0.70138497]
[1767939589717,4.81820129,139.83,139.8,0.70138497]
[1767939591315,12.2955247,139.83,139.8,0.70138497]
[1767939591608,7.47732341,139.83,139.8,0.70138497]
[1767939599115,9.68007517,139.83,139.8,0.70138497]
[1767939599498,4.82086637,139.82,139.8,0.70138497]
[1767939599820,4.82086637,139.82,139.8,0.64138497]
[1767939600007,4.82086637,139.82,139.78,7.15391767]
[1767939600008,5.54079011,139.82,139.78,7.15391767]
[1767939600804,4.82086637,139.82,139.78,7.15391767]
[1767939601430,14.56086956,139.82,139.77,2.20275176]
[1767939601605,9.74000319,139.82,139.76,2.20275176]
[1767939601799,9.74000319,139.82,139.77,0.70138497]
[1767939602005,7.53725143,139.82,139.79,0.70138497]
[1767939602221,0.38516432,139.82,139.79,0.70138497]
[1767939602419,5.20629604,139.82,139.79,0.70138497]
[1767939603130,0.66491727,139.81,139.78,2.20275176]
[1767939603424,4.82113172,139.82,139.79,0.66621972]
[1767939603628,7.81664594,139.83,139.79,0.66621972]
[1767939604025,7.81664594,139.83,139.78,2.20275176]
[1767939604026,7.15106306,139.84,139.81,0.66621972]
[1767939604329,4.82121892,139.83,139.81,0.66621972]
[1767939605312,11.9728139,139.83,139.81,0.66621972]
[1767939605523,2.64460291,139.82,139.79,0.66621972]
[1767939605724,2.64460291,139.82,139.78,0.66621972]
[1767939605899,0.44185115,139.82,139.78,0.66621972]
[1767939606105,5.26461081,139.82,139.78,0.66621972]
[1767939606914,12.41667861,139.82,139.78,0.66621972]
[1767939607114,7.59391895,139.82,139.78,0.66621972]
[1767939611033,7.59391895,139.82,139.79,0.72259031]
[1767939612113,0.44776564,139.84,139.81,4.16429242]
[1767939612418,5.27053922,139.84,139.81,0.72259031]
[1767939612616,4.82277358,139.84,139.82,0.72259031]
[1767939613631,4.82277358,139.84,139.83,0.72259031]
[1767939616539,13.06,139.85,139.83,0.72259031]
[1767939617037,4.82211002,139.84,139.83,0.72259031]
[1767939617219,13.06,139.85,139.83,0.72259031]
[1767939617418,4.8216321,139.84,139.83,0.72259031]
[1767939617618,0.65460084,139.84,139.81,0.72259031]
[1767939617826,5.47637907,139.84,139.81,0.72259031]
[1767939618745,4.82177823,139.84,139.81,0.72259031]
[1767939622623,3.88946775,139.84,139.81,0.72259031]
[1767939622827,3.88946775,139.84,139.8,0.72259031]
[1767939622828,8.2652715,139.83,139.8,0.72259031]
[1767939623053,0.1,139.88,139.82,3.44170211]
[1767939623344,0.75669008,139.88,139.84,3.44170211]
[1767939623546,0.65669008,139.87,139.84,3.44170211]
[1767939623945,5.5794462,139.88,139.84,3.44170211]
[1767939624262,0.75669008,139.88,139.84,3.44170211]
[1767939624559,0.1,139.88,139.85,3.44170211]
[1767939626246,0.1,139.88,139.86,3.44170211]
[1767939626846,0.1,139.88,139.85,10.59205612]
[1767939627034,0.1,139.88,139.85,3.44170211]
[1767939630433,0.75669008,139.88,139.85,3.44170211]
[1767939632656,0.75669008,139.88,139.83,7.15134484]
[1767939632836,0.75669008,139.88,139.84,3.44170211]
[1767939636861,0.75669008,139.88,139.84,10.59271598]
[1767939637171,0.75669008,139.88,139.85,3.44170211]
[1767939637357,7.90577326,139.88,139.85,3.44170211]
[1767939637561,0.65467774,139.86,139.81,7.15216045]
[1767939637766,0.65467774,139.86,139.81,3.44170211]
[1767939637767,0.65467774,139.85,139.81,3.44170211]
[1767939640955,0.65467774,139.85,139.8,7.15273322]
[1767939640956,0.65467774,139.84,139.79,7.15347707]
[1767939641270,0.65467774,139.84,139.8,3.44170211]
[1767939642750,0.65467774,139.84,139.81,3.44170211]
[1767939644367,7.80599385,139.84,139.81,3.44170211]
[1767939644554,0.65467774,139.84,139.81,3.44170211]
[1767939645669,0.65467774,139.84,139.78,7.15409929]
[1767939645979,0.65467774,139.84,139.8,3.44170211]
[1767939646870,0.65467774,139.84,139.8,10.5947599]
[1767939651073,0.65467774,139.84,139.81,3.44170211]
[1767939653773,13.71467774,139.86,139.82,3.44170211]
[1767939654160,0.65467774,139.85,139.82,3.44170211]
[1767939656254,0.65467774,139.85,139.83,3.44170211]
[1767939656858,0.65467774,139.85,139.82,7.15165461]
[1767939657069,0.65467774,139.85,139.83,3.44170211]
[1767939657780,0.1,139.88,139.84,3.44170211]
[1767939658079,0.1,139.88,139.85,0.69979766]
[1767939658455,0.1,139.88,139.84,3.44170211]
[1767939659380,10.69074935,139.88,139.83,11.2929374]
[1767939659749,0.65467774,139.87,139.83,11.2929374]
[1767939661685,0.65467774,139.87,139.81,0.69979766]
[1767939661686,0.65467774,139.85,139.81,0.69979766]
[1767939661859,0.65467774,139.84,139.81,0.69979766]
[1767939662561,0.62467775,139.84,139.81,0.69979766]
[1767939663176,7.14955834,139.87,139.82,4.11362757]
[1767939663387,3.44170211,139.85,139.81,7.15235887]
[1767939664579,0.71381145,139.84,139.81,7.15235887]
[1767939665282,4.15551356,139.85,139.81,7.82428433]
[1767939665458,0.71381145,139.84,139.81,7.82428433]
[1767939665658,4.15551356,139.85,139.81,7.82428433]
[1767939668886,0.71381145,139.84,139.81,0.67192546]
[1767939669074,0.71381145,139.82,139.79,0.67192546]
[1767939669266,0.68381146,139.82,139.79,0.67192546]
[1767939669574,3.44170211,139.8,139.77,0.67192546]
[1767939669761,3.44170211,139.81,139.77,0.67192546]
[1767939670967,13.06,139.83,139.77,0.67192546]
[1767939671171,4.15551356,139.8,139.77,0.67192546]
[1767939672578,2.91730771,139.8,139.77,0.67192546]
[1767939673561,2.86600017,139.78,139.75,0.6634938]
[1767939675401,0.66250391,139.78,139.75,0.6634938]
[1767939676072,2.86600017,139.78,139.75,0.6634938]
[1767939678070,2.86600017,139.78,139.73,0.6634938]
[1767939678071,0.66250391,139.76,139.73,0.6634938]
[1767939678392,2.83600018,139.76,139.73,0.6634938]
[1767939678974,2.20349626,139.75,139.71,0.6634938]
[1767939679175,2.20349626,139.74,139.7,0.6634938]
[1767939679493,2.20349626,139.74,139.68,2.29982546]
[1767939679676,2.20349626,139.73,139.68,2.29982546]
[1767939679990,2.20349626,139.73,139.68,9.4588893]
[1767939680193,0.66250391,139.72,139.68,7.91888684]
[1767939680397,0.66250391,139.72,139.68,7.25539304]
[1767939680598,0.63250392,139.72,139.7,2.20349626]
[1767939681495,0.63250392,139.72,139.69,2.20349626]
[1767939682194,2.20349626,139.74,139.71,0.6634938]
[1767939682578,2.86600017,139.74,139.71,0.6634938]
[1767939690718,20.87778239,139.76,139.72,0.6634938]
[1767939690884,20.87778239,139.76,139.73,0.6634938]
[1767939691703,2.20349626,139.77,139.73,0.6634938]
[1767939692490,2.20349626,139.78,139.74,0.6634938]
[1767939693701,2.8619307,139.78,139.74,0.6634938]
[1767939694101,9.3581074,139.77,139.74,0.6634938]
[1767939699498,2.20349626,139.77,139.74,0.6634938]
[1767939699699,10.01618476,139.78,139.74,0.6634938]
[1767939699912,0.17759011,139.77,139.74,0.6634938]
[1767939701093,0.18235047,139.75,139.72,13.74296434]
[1767939701799,2.8619307,139.76,139.72,13.74296434]
[1767939702004,2.20349626,139.74,139.71,0.68296434]
[1767939702406,0.17759011,139.75,139.71,0.68296434]
[1767939702712,2.20349626,139.74,139.71,0.68296434]
[1767939705725,2.20349626,139.73,139.71,0.68296434]
[1767939705923,2.38584673,139.73,139.7,13.06]
[1767939706123,2.38584673,139.73,139.69,13.74296434]
[1767939706506,0.18235047,139.73,139.69,13.74296434]
[1767939706705,2.38584673,139.73,139.69,13.74296434]
[1767939706907,2.38584673,139.73,139.7,0.68296434]
[1767939707308,0.18235047,139.73,139.7,0.68296434]
[1767939711538,0.64891324,139.72,139.69,0.68296434]
[1767939712633,10.01873478,139.73,139.69,0.68296434]
[1767939714433,0.65843444,139.73,139.7,0.68296434]
[1767939717730,0.65843444,139.76,139.72,0.68296434]
[1767939717922,7.67350938,139.76,139.72,0.68296434]
[1767939718122,2.8619307,139.76,139.72,0.68296434]
[1767939718840,10.01726994,139.76,139.72,0.68296434]
[1767939719431,7.81377368,139.76,139.72,0.68296434]
[1767939719639,10.01726994,139.76,139.72,0.68296434]
[1767939720214,4.81532804,139.75,139.72,0.68296434]
[1767939720518,10.01726994,139.76,139.72,0.68296434]
[1767939722328,4.81754893,139.75,139.72,0.68296434]
[1767939722635,14.3544087,139.75,139.72,0.68296434]
[1767939722819,9.53685977,139.75,139.72,0.68296434]
[1767939724434,2.38108637,139.75,139.72,0.68296434]
[1767939724820,0.17759011,139.75,139.72,0.68296434]
[1767939725223,10.0133198,139.77,139.73,0.66112253]
[1767939725640,0.18098289,139.76,139.73,0.66112253]
[1767939726525,10.0133198,139.77,139.73,0.66112253]
[1767939727540,0.18098289,139.76,139.73,0.66112253]
[1767939733152,7.33610877,139.76,139.73,0.66112253]
[1767939733735,10.78040823,139.76,139.73,0.66112253]
[1767939734252,0.18567573,139.74,139.71,0.65520181]
[1767939739262,0.18567573,139.74,139.71,4.09950127]
[1767939742263,0.18567573,139.74,139.71,0.65520181]
[1767939745663,0.18567573,139.74,139.71,4.09950127]
[1767939750548,0.18567573,139.74,139.72,0.65520181]
[1767939751072,17.88730218,139.77,139.71,3.44429946]
[1767939751073,0.6694188,139.77,139.74,0.65520181]
[1767939751259,5.49058047,139.77,139.74,4.09950127]
[1767939756260,4.82116167,139.77,139.75,0.6981509]
[1767939756877,4.96548068,139.77,139.75,0.6981509]
[1767939757678,4.96548068,139.77,139.74,0.6981509]
[1767939758559,15.5644473,139.77,139.74,0.6981509]
[1767939758880,10.74328563,139.77,139.74,0.6981509]
[1767939759477,3.58861847,139.77,139.74,0.6981509]
[1767939762978,0.14431901,139.77,139.74,0.6981509]
[1767939763278,4.96786913,139.77,139.74,0.6981509]
[1767939764880,0.14431901,139.77,139.74,0.6981509]
[1767939765058,4.96739718,139.77,139.74,0.6981509]
[1767939766383,0.14431901,139.77,139.74,0.6981509]
[1767939766584,4.96703035,139.77,139.74,0.6981509]
[1767939768780,0.69204161,139.79,139.76,4.14245036]
[1767939771877,0.69204161,139.79,139.76,0.6981509]
[1767939772077,0.69204161,139.79,139.76,4.14245036]
[1767939772277,7.84461824,139.81,139.77,4.14245036]
[1767939772474,4.96212861,139.8,139.77,4.14245036]
[1767939772876,4.8178096,139.8,139.78,0.6981509]
[1767939773184,4.8178096,139.8,139.78,0.6381509]
[1767939773687,5.02152861,139.8,139.77,3.44429946]
[1767939774375,0.20371901,139.8,139.77,3.44429946]
[1767939774978,0.20371901,139.8,139.77,4.14245036]
[1767939777389,7.84461824,139.81,139.78,0.6981509]
[1767939777987,7.15257663,139.81,139.78,0.6981509]
[1767939778190,7.35629564,139.81,139.78,0.6981509]
[1767939779698,7.84371296,139.83,139.8,0.6981509]
[1767939779895,0.20371901,139.82,139.79,4.14245036]
[1767939780088,0.69204161,139.83,139.8,0.6981509]
[1767939780274,5.50335422,139.83,139.8,0.6981509]
[1767939780480,5.50335422,139.83,139.8,0.6381509]
[1767939781089,0.69204161,139.83,139.8,0.6381509]
[1767939781599,110.2512497,139.84,139.8,3.44429946]
[1767939781793,103.1,139.84,139.8,10.59736665]
[1767939782506,103.1,139.84,139.81,0.71521585]
[1767939782799,110.25103507,139.84,139.81,0.71521585]
[1767939783092,110.51415408,139.84,139.81,0.71521585]
[1767939783502,113.95845354,139.84,139.81,0.71521585]
[1767939784296,113.95845354,139.84,139.79,13.77521585]
[1767939784297,0.26736535,139.82,139.79,13.77521585]
[1767939784700,11.305529,139.83,139.79,13.77521585]
[1767939784902,11.305529,139.83,139.8,0.71521585]
[1767939785101,0.24572184,139.82,139.79,13.77521585]
[1767939785308,0.70497558,139.81,139.78,0.71521585]
[1767939789407,0.70497558,139.81,139.78,4.15951531]
[1767939790412,7.83416066,139.82,139.79,0.65478365]
[1767939799128,0.68175333,139.82,139.79,0.65478365]
[1767939799329,103.78175333,139.84,139.81,0.65478365]
[1767939799495,103.78175333,139.84,139.81,2.85736973]
[1767939800523,103.1,139.84,139.82,0.65478365]
[1767939800822,103.1,139.84,139.81,2.20258608]
[1767939800823,103.4327044,139.84,139.81,2.20258608]
[1767939801001,103.4327044,139.84,139.8,7.15287764]
[1767939801316,103.4327044,139.84,139.8,9.35546372]
[1767939802616,103.4327044,139.84,139.81,0.65478365]
[1767939803194,0.67826285,139.83,139.8,0.65478365]
[1767939803516,2.88084893,139.83,139.8,0.65478365]
[1767939804220,0.67826285,139.83,139.8,0.65478365]
[1767939816320,5.49714502,139.83,139.8,0.65478365]
[1767939819716,0.67826285,139.83,139.8,0.65478365]
[1767939820239,5.49944305,139.83,139.8,0.65478365]
[1767939820845,12.65101277,139.83,139.8,0.65478365]
[1767939821144,7.82983257,139.83,139.8,0.65478365]
[1767939825843,0.67826285,139.83,139.8,0.65478365]
[1767939826015,5.50218892,139.83,139.8,0.65478365]
[1767939828117,12.6537488,139.83,139.8,0.65478365]
[1767939828319,7.82982273,139.83,139.8,0.65478365]
[1767939830538,0.33615998,139.82,139.79,0.68534124]
[1767939830723,5.16076324,139.82,139.79,0.68534124]
[1767939830923,5.16076324,139.82,139.78,15.26258608]
[1767939830924,0.67484182,139.81,139.78,15.26258608]
[1767939833619,0.3395468,139.8,139.77,2.20258608]
[1767939833819,0.30954681,139.8,139.77,15.26258608]
[1767939836147,7.44146252,139.81,139.78,0.68534124]
[1767939837378,2.49531952,139.79,139.74,0.68534124]
[1767939837648,7.15315204,139.8,139.76,0.68534124]
[1767939837649,10.05194121,139.8,139.76,0.68534124]
[1767939837848,4.82578713,139.79,139.78,0.68534124]
[1767939838326,5.52199022,139.81,139.78,0.68534124]
[1767939838661,5.11448628,139.8,139.77,0.68534124]
[1767939838860,4.82578713,139.79,139.77,2.88792732]
[1767939839068,0.28869915,139.8,139.77,2.88792732]
[1767939839443,0.28869915,139.8,139.77,0.68534124]
[1767939839960,4.82428109,139.81,139.77,0.68534124]
[1767939840165,5.52048418,139.81,139.77,0.68534124]
[1767939840366,7.72307026,139.81,139.77,0.68534124]
[1767939840566,4.82428109,139.8,139.77,0.68534124]
[1767939841245,7.31556632,139.8,139.77,0.68534124]
[1767939841557,4.82428109,139.79,139.77,0.68534124]
[1767939841868,14.87273346,139.79,139.75,0.68534124]
[1767939842160,10.04845237,139.79,139.75,0.68534124]
[1767939842743,10.04845237,139.79,139.74,22.41873235]
[1767939842744,0.68813411,139.77,139.71,0.67917607]
[1767939842948,2.8607202,139.77,139.74,0.67917607]
[1767939843663,10.01533215,139.77,139.74,0.67917607]
[1767939844265,2.8607202,139.77,139.74,0.67917607]
[1767939844867,0.65813412,139.77,139.74,0.67917607]
[1767939845380,2.91443621,139.78,139.74,7.83521648]
[1767939845546,7.15264048,139.81,139.78,0.67917607]
[1767939846269,10.06239328,139.81,139.78,0.67917607]
[1767939848367,2.9097528,139.81,139.78,0.67917607]
[1767939848667,0.70716672,139.81,139.78,0.67917607]
[1767939850773,9.35482037,139.82,139.78,0.67917607]
[1767939850972,9.65492008,139.82,139.78,0.67917607]
[1767939853148,2.20258608,139.81,139.78,0.67917607]
[1767939853477,7.80692167,139.82,139.79,0.6893406]
[1767939855956,11.24850442,139.82,139.79,0.6893406]
[1767939856157,7.80692167,139.82,139.79,0.6893406]
[1767939856457,11.24850442,139.82,139.79,0.6893406]
[1767939856863,11.24850442,139.82,139.78,0.6893406]
[1767939856864,0.30009971,139.81,139.78,0.6893406]
[1767939857066,8.55699511,139.81,139.78,0.6893406]
[1767939857391,3.74168246,139.81,139.78,0.6893406]
[1767939858071,7.45277736,139.81,139.78,0.6893406]
[1767939858281,10.89436011,139.81,139.78,0.6893406]
[1767939858774,7.45277736,139.81,139.78,0.6893406]
[1767939860589,10.89436011,139.81,139.78,0.6893406]
[1767939861588,7.80426491,139.8,139.77,0.6893406]
[1767939861762,11.24584766,139.8,139.77,0.6893406]
[1767939862890,3.74519288,139.79,139.76,13.7493406]
[1767939863073,0.27361014,139.79,139.76,13.7493406]
[1767939863278,3.71519289,139.79,139.76,13.7493406]
[1767939863862,7.42727392,139.79,139.76,13.7493406]
[1767939865282,0.65468738,139.81,139.78,0.6893406]
[1767939865476,5.47123701,139.81,139.78,0.6893406]
[1767939865976,12.62392661,139.81,139.78,0.6893406]
[1767939866169,4.81654963,139.8,139.78,0.6893406]
[1767939868685,7.80737698,139.81,139.78,0.6893406]
[1767939872986,0.27039972,139.8,139.76,24.32030573]
[1767939873167,0.27039972,139.8,139.76,23.65645531]
[1767939873371,0.27039972,139.8,139.76,24.32030573]
[1767939878286,0.65084451,139.79,139.76,24.32030573]
[1767939878485,4.82267617,139.8,139.77,0.66385042]
[1767939883796,0.25055198,139.79,139.76,13.72385042]
[1767939883993,5.07322815,139.79,139.76,13.72385042]
[1767939884775,12.22694006,139.79,139.76,13.72385042]
[1767939885074,7.40426389,139.79,139.76,13.72385042]
[1767939886495,7.15371191,139.79,139.77,0.66385042]